[Event "Masterklassen 2025"]
[Site "Uppsala, Sweden"]
[Date "2025.07.03"]
[Round "6.2"]
[White "Johnson, Daniel"]
[Black "Crevatin, Leo"]
[Result "0-1"]
[TimeControl "90 min for 40 move + 30 min with an increment of 30 sec starting move 1"]
[BlackTitle "FM"]
[WhiteFideId "1721283"]
[BlackFideId "1726307"]
[WhiteElo "2175"]
[BlackElo "2248"]

1. d4 {[%clk 01:22:52]} {[%emt 00:08:04]} d5 {[%clk 01:29:10]} {[%emt
00:01:55]} 2. c4 {[%clk 01:22:29]} {[%emt 00:00:53]} e6 {[%clk 01:29:34]}
{[%emt 00:00:06]} 3. Nc3 {[%clk 01:22:30]} {[%emt 00:00:29]} Nf6 {[%clk
01:29:56]} {[%emt 00:00:07]} 4. cxd5 {[%clk 01:21:01]} {[%emt 00:01:59]} exd5
{[%clk 01:30:23]} {[%emt 00:00:03]} 5. Bg5 {[%clk 01:21:16]} {[%emt 00:00:15]}
c6 {[%clk 01:30:47]} {[%emt 00:00:07]} 6. e3 {[%clk 01:21:40]} {[%emt
00:00:06]} Be6 {[%clk 01:31:07]} {[%emt 00:00:10]} 7. Bd3 {[%clk 01:20:45]}
{[%emt 00:01:25]} Nbd7 {[%clk 01:31:29]} {[%emt 00:00:08]} 8. Nge2 {[%clk
01:20:00]} {[%emt 00:01:14]} h6 {[%clk 01:31:14]} {[%emt 00:00:46]} 9. Bh4
{[%clk 01:18:39]} {[%emt 00:01:50]} g5 {[%clk 01:31:39]} {[%emt 00:00:06]} 10.
Bg3 {[%clk 01:19:02]} {[%emt 00:00:07]} Nh5 {[%clk 01:32:05]} {[%emt 00:00:04]}
11. Qc2 {[%clk 01:18:52]} {[%emt 00:00:39]} Nxg3 {[%clk 01:32:14]} {[%emt
00:00:21]} 12. hxg3 {[%clk 01:10:24]} {[%emt 00:08:59]} Qf6 {[%clk 01:28:31]}
{[%emt 00:04:13]} 13. f3 {[%clk 01:02:40]} {[%emt 00:08:14]} Nb6 {[%clk
01:22:10]} {[%emt 00:06:51]} 14. e4 {[%clk 00:57:29]} {[%emt 00:05:41]} dxe4
{[%clk 01:18:52]} {[%emt 00:03:47]} 15. fxe4 {[%clk 00:57:36]} {[%emt
00:00:24]} O-O-O {[%clk 01:14:56]} {[%emt 00:04:26]} 16. O-O-O {[%clk
00:48:25]} {[%emt 00:09:39]} Kb8 {[%clk 01:10:58]} {[%emt 00:04:30]} 17. Kb1
{[%clk 00:42:35]} {[%emt 00:06:19]} Bg7 {[%clk 01:02:46]} {[%emt 00:08:42]} 18.
a3 {[%clk 00:28:29]} {[%emt 00:14:37]} Qe7 {[%clk 00:52:41]} {[%emt 00:10:35]}
19. e5 {[%clk 00:10:38]} {[%emt 00:18:20]} c5 {[%clk 00:50:43]} {[%emt
00:02:29]} 20. Be4 {[%clk 00:00:33]} {[%emt 00:10:35]} cxd4 {[%clk 00:48:10]}
{[%emt 00:03:02]} 21. Nxd4 {[%clk 00:00:50]} {[%emt 00:00:14]} Bxe5 {[%clk
00:46:53]} {[%emt 00:01:46]} 22. Nxe6 {[%clk 00:00:41]} {[%emt 00:00:39]} Qxe6
{[%clk 00:46:51]} {[%emt 00:00:33]} 23. Bf5 {[%clk 00:00:31]} {[%emt 00:00:40]}
Qc6 {[%clk 00:42:48]} {[%emt 00:04:31]} 24. Ne4 {[%clk 00:00:31]} {[%emt
00:00:31]} Qxc2+ {[%clk 00:38:01]} {[%emt 00:05:17]} 25. Kxc2 {[%clk 00:00:56]}
{[%emt 00:00:05]} Nc4 {[%clk 00:38:23]} {[%emt 00:00:08]} 26. Rxd8+ Rxd8 {[%clk
00:38:52]} 27. g4 {[%clk 00:01:21]} {[%emt 00:00:14]} Bg7 {[%clk 00:37:31]}
{[%emt 00:01:50]} 28. Nc3 {[%clk 00:00:32]} {[%emt 00:01:19]} Rd2+ {[%clk
00:35:39]} {[%emt 00:02:22]} 29. Kb3 {[%clk 00:00:33]} {[%emt 00:00:29]} Na5+
{[%clk 00:33:21]} {[%emt 00:02:48]} 30. Ka4 {[%clk 00:00:32]} {[%emt 00:00:31]}
Rxb2 {[%clk 00:31:36]} {[%emt 00:02:16]} 31. Nd5 {[%clk 00:00:46]} {[%emt
00:00:15]} Nc4 {[%clk 00:29:21]} {[%emt 00:02:45]} 32. Nb4 {[%clk 00:01:11]}
{[%emt 00:00:06]} a6 {[%clk 00:26:41]} {[%emt 00:03:10]} 33. Nxa6+ {[%clk
00:01:00]} {[%emt 00:00:40]} bxa6 {[%clk 00:27:08]} {[%emt 00:00:04]} 34. Rd1
{[%clk 00:01:25]} {[%emt 00:00:04]} Rb5 {[%clk 00:26:08]} {[%emt 00:01:31]} 35.
Rd8+ {[%clk 00:01:48]} {[%emt 00:00:07]} Ka7 {[%clk 00:26:07]} {[%emt
00:00:31]} 0-1

[Event "Masterklassen 2025"]
[Site "Uppsala, Sweden"]
[Date "2025.07.03"]
[Round "6.3"]
[White "Hammarstrom, Ulf"]
[Black "Eriksson, Jorgen"]
[Result "1/2-1/2"]
[TimeControl "90 min for 40 move + 30 min with an increment of 30 sec starting move 1"]
[WhiteFideId "1710214"]
[BlackFideId "1701967"]
[WhiteElo "2176"]
[BlackElo "2160"]

1. e4 {[%clk 01:28:33]} {[%emt 00:02:27]} c5 {[%clk 01:30:48]} {[%emt
00:00:12]} 2. c3 {[%clk 01:28:49]} {[%emt 00:00:14]} d5 {[%clk 01:31:05]}
{[%emt 00:00:12]} 3. exd5 {[%clk 01:28:53]} {[%emt 00:00:27]} Qxd5 {[%clk
01:31:19]} {[%emt 00:00:15]} 4. d4 {[%clk 01:29:10]} {[%emt 00:00:13]} e6
{[%clk 01:29:16]} {[%emt 00:02:33]} 5. Nf3 {[%clk 01:28:47]} {[%emt 00:00:53]}
Nf6 {[%clk 01:29:30]} {[%emt 00:00:17]} 6. Na3 {[%clk 01:25:24]} {[%emt
00:03:52]} a6 {[%clk 01:29:32]} {[%emt 00:00:29]} 7. Nc4 {[%clk 01:24:59]}
{[%emt 00:00:54]} Nbd7 {[%clk 01:29:43]} {[%emt 00:00:20]} 8. Be2 {[%clk
01:24:35]} {[%emt 00:00:54]} b5 {[%clk 01:28:02]} {[%emt 00:02:11]} 9. Ne3
{[%clk 01:24:54]} {[%emt 00:00:11]} Qc6 {[%clk 01:28:19]} {[%emt 00:00:14]} 10.
a4 {[%clk 01:23:39]} {[%emt 00:01:44]} Bb7 {[%clk 01:14:17]} {[%emt 00:14:32]}
11. axb5 {[%clk 01:23:14]} {[%emt 00:00:55]} axb5 {[%clk 01:14:39]} {[%emt
00:00:08]} 12. Rxa8+ {[%clk 01:23:37]} {[%emt 00:00:07]} Bxa8 {[%clk 01:15:05]}
{[%emt 00:00:04]} 13. O-O {[%clk 01:15:02]} {[%emt 00:09:06]} Be7 {[%clk
01:13:56]} {[%emt 00:01:36]} 14. dxc5 {[%clk 01:13:24]} {[%emt 00:02:10]} Qxc5
{[%clk 01:14:00]} {[%emt 00:00:26]} 15. Nc2 {[%clk 00:55:26]} {[%emt 00:18:29]}
Nd5 {[%clk 01:06:34]} {[%emt 00:07:55]} 16. Nfd4 {[%clk 00:54:40]} {[%emt
00:01:16]} b4 {[%clk 00:51:39]} {[%emt 00:15:24]} 17. c4 {[%clk 00:50:22]}
{[%emt 00:04:49]} N5f6 {[%clk 00:36:13]} {[%emt 00:15:56]} 18. Be3 {[%clk
00:43:00]} {[%emt 00:07:49]} Qd6 {[%clk 00:15:42]} {[%emt 00:21:04]} 19. Qa1
{[%clk 00:32:38]} {[%emt 00:10:52]} O-O {[%clk 00:14:56]} {[%emt 00:01:16]} 20.
Rd1 {[%clk 00:32:43]} {[%emt 00:00:24]} Qb8 {[%clk 00:12:08]} {[%emt 00:03:18]}
21. Qa4 {[%clk 00:29:02]} {[%emt 00:04:11]} Be4 {[%clk 00:07:18]} {[%emt
00:05:20]} 22. f3 {[%clk 00:22:52]} {[%emt 00:06:42]} Bxc2 {[%clk 00:06:53]}
{[%emt 00:00:55]} 23. Nxc2 {[%clk 00:22:55]} {[%emt 00:00:27]} Qb7 {[%clk
00:04:27]} {[%emt 00:02:56]} 24. Ra1 {[%clk 00:14:40]} {[%emt 00:08:44]} Rb8
{[%clk 00:04:11]} {[%emt 00:00:45]} 25. Qa7 {[%clk 00:13:37]} {[%emt 00:01:34]}
Qxa7 {[%clk 00:03:43]} {[%emt 00:00:58]} 26. Rxa7 {[%clk 00:14:03]} {[%emt
00:00:04]} h6 {[%clk 00:03:51]} {[%emt 00:00:23]} 27. Rc7 {[%clk 00:13:19]}
{[%emt 00:01:14]} Bd8 {[%clk 00:03:37]} {[%emt 00:00:43]} 28. Rc6 {[%clk
00:13:42]} {[%emt 00:00:07]} Be7 {[%clk 00:03:06]} {[%emt 00:01:01]} 29. Rc7
{[%clk 00:13:04]} {[%emt 00:01:08]} Bd6 {[%clk 00:02:57]} {[%emt 00:00:38]} 30.
Rc6 {[%clk 00:13:17]} {[%emt 00:00:17]} Be7 {[%clk 00:03:23]} {[%emt 00:00:05]}
1/2-1/2

[Event "Masterklassen 2025"]
[Site "Uppsala, Sweden"]
[Date "2025.07.03"]
[Round "6.4"]
[White "Hagevi, Vidar"]
[Black "Muntean, Victor"]
[Result "0-1"]
[TimeControl "90 min for 40 move + 30 min with an increment of 30 sec starting move 1"]
[WhiteFideId "1767526"]
[BlackFideId "1054414"]
[WhiteElo "2139"]
[BlackElo "2140"]

1. d4 {[%clk 01:30:56]} {[%emt 00:00:03]} Nf6 {[%clk 01:30:56]} {[%emt
00:00:05]} 2. c4 {[%clk 01:30:50]} {[%emt 00:00:35]} g6 {[%clk 01:31:20]}
{[%emt 00:00:06]} 3. g3 {[%clk 01:31:02]} {[%emt 00:00:18]} Bg7 {[%clk
01:31:43]} {[%emt 00:00:08]} 4. Bg2 {[%clk 01:31:23]} {[%emt 00:00:07]} O-O
{[%clk 01:32:07]} {[%emt 00:00:07]} 5. Nc3 {[%clk 01:31:43]} {[%emt 00:00:09]}
d6 {[%clk 01:32:28]} {[%emt 00:00:10]} 6. Nf3 {[%clk 01:31:49]} {[%emt
00:00:24]} Nc6 {[%clk 01:32:19]} {[%emt 00:00:40]} 7. O-O {[%clk 01:32:03]}
{[%emt 00:00:14]} Bf5 {[%clk 01:31:15]} {[%emt 00:01:36]} 8. Nh4 {[%clk
01:28:57]} {[%emt 00:03:34]} Bd7 {[%clk 01:31:05]} {[%emt 00:00:41]} 9. e4
{[%clk 01:28:12]} {[%emt 00:01:14]} e5 {[%clk 01:29:45]} {[%emt 00:01:51]} 10.
d5 {[%clk 01:23:45]} {[%emt 00:04:57]} Nd4 {[%clk 01:26:13]} {[%emt 00:04:02]}
11. Qd3 {[%clk 01:15:30]} {[%emt 00:08:45]} c5 {[%clk 01:22:53]} {[%emt
00:03:51]} 12. f4 {[%clk 01:08:17]} {[%emt 00:07:42]} a6 {[%clk 01:18:55]}
{[%emt 00:04:29]} 13. f5 {[%clk 01:00:47]} {[%emt 00:07:59]} b5 {[%clk
01:16:17]} {[%emt 00:03:08]} 14. b3 {[%clk 01:00:07]} {[%emt 00:01:10]} Rb8
{[%clk 01:12:29]} {[%emt 00:04:19]} 15. fxg6 {[%clk 00:55:28]} {[%emt
00:05:08]} fxg6 {[%clk 01:12:13]} {[%emt 00:00:46]} 16. Bg5 {[%clk 00:54:08]}
{[%emt 00:01:50]} bxc4 {[%clk 01:10:25]} {[%emt 00:02:19]} 17. bxc4 {[%clk
00:53:11]} {[%emt 00:01:26]} Qa5 {[%clk 01:09:15]} {[%emt 00:01:40]} 18. Kh1
{[%clk 00:39:03]} {[%emt 00:14:34]} Ng4 {[%clk 01:04:12]} {[%emt 00:05:38]} 19.
Bf3 {[%clk 00:34:53]} {[%emt 00:04:37]} Rb2 {[%clk 00:58:36]} {[%emt 00:06:08]}
20. Bxg4 {[%clk 00:25:52]} {[%emt 00:09:32]} Bxg4 {[%clk 00:58:43]} {[%emt
00:00:23]} 21. Be7 {[%clk 00:24:47]} {[%emt 00:01:34]} Re8 {[%clk 00:57:49]}
{[%emt 00:01:25]} 22. Bxd6 {[%clk 00:22:13]} {[%emt 00:03:04]} Rc2 {[%clk
00:57:49]} {[%emt 00:00:29]} 23. Rac1 {[%clk 00:14:04]} {[%emt 00:08:39]} Rxc1
{[%clk 00:58:07]} {[%emt 00:00:12]} 24. Rxc1 {[%clk 00:14:29]} {[%emt
00:00:06]} Qb6 {[%clk 00:58:29]} {[%emt 00:00:08]} 25. Bxc5 {[%clk 00:13:55]}
{[%emt 00:01:04]} Qxc5 {[%clk 00:58:52]} {[%emt 00:00:06]} 26. Nd1 {[%clk
00:13:54]} {[%emt 00:00:28]} Bh6 {[%clk 00:56:35]} {[%emt 00:02:50]} 27. Ne3
{[%clk 00:12:28]} {[%emt 00:01:56]} Bf3+ {[%clk 00:51:26]} {[%emt 00:05:39]} 28.
Nxf3 {[%clk 00:11:01]} {[%emt 00:01:57]} Nxf3 {[%clk 00:51:49]} {[%emt
00:00:07]} 29. Rf1 {[%clk 00:05:26]} {[%emt 00:06:04]} Nxh2 {[%clk 00:46:29]}
{[%emt 00:05:50]} 30. Kxh2 {[%clk 00:05:08]} {[%emt 00:00:48]} Qxe3 {[%clk
00:46:51]} {[%emt 00:00:09]} 31. Rf3 {[%clk 00:04:25]} {[%emt 00:01:10]} Qxd3
{[%clk 00:45:33]} {[%emt 00:01:51]} 32. Rxd3 {[%clk 00:04:45]} {[%emt
00:00:11]} Bf8 {[%clk 00:43:48]} {[%emt 00:02:14]} 33. d6 {[%clk 00:02:04]}
{[%emt 00:03:10]} Rd8 {[%clk 00:43:40]} {[%emt 00:00:39]} 34. c5 {[%clk
00:02:21]} {[%emt 00:00:14]} Kf7 {[%clk 00:44:02]} {[%emt 00:00:08]} 35. Rb3
{[%clk 00:01:26]} {[%emt 00:01:23]} Ke6 {[%clk 00:43:28]} {[%emt 00:01:05]} 36.
Rb7 {[%clk 00:01:16]} {[%emt 00:00:39]} Rd7 {[%clk 00:43:04]} {[%emt 00:00:56]}
37. Rb8 {[%clk 00:01:31]} {[%emt 00:00:14]} Bxd6 {[%clk 00:39:07]} {[%emt
00:04:28]} 38. cxd6 {[%clk 00:01:12]} {[%emt 00:00:49]} Rxd6 {[%clk 00:39:31]}
{[%emt 00:00:06]} 39. Kh3 {[%clk 00:01:12]} {[%emt 00:00:28]} Rc6 {[%clk
00:38:12]} {[%emt 00:01:50]} 40. Rb7 {[%clk 00:00:59]} {[%emt 00:00:42]} h6
{[%clk 00:36:46]} {[%emt 00:01:57]} 41. Rg7 {[%clk 00:27:44]} {[%emt 00:03:42]}
Kf6 {[%clk 01:07:08]} {[%emt 00:00:10]} 42. Rd7 {[%clk 00:27:31]} {[%emt
00:00:38]} Rc4 {[%clk 01:04:40]} {[%emt 00:03:04]} 43. Rd6+ {[%clk 00:27:46]}
{[%emt 00:00:15]} Kg5 {[%clk 01:05:03]} {[%emt 00:00:07]} 44. Rxa6 {[%clk
00:28:07]} {[%emt 00:00:09]} Rxe4 {[%clk 01:05:27]} {[%emt 00:00:06]} 45. a4
{[%clk 00:26:04]} {[%emt 00:02:34]} Re2 {[%clk 01:04:26]} {[%emt 00:01:30]} 46.
a5 {[%clk 00:25:21]} {[%emt 00:01:12]} h5 {[%clk 01:04:13]} {[%emt 00:00:44]}
47. Ra8 {[%clk 00:24:03]} {[%emt 00:01:47]} Re3 {[%clk 01:03:11]} {[%emt
00:01:32]} 48. Kh2 {[%clk 00:18:53]} {[%emt 00:05:41]} Kg4 {[%clk 01:03:28]}
{[%emt 00:00:13]} 49. Rg8 {[%clk 00:18:03]} {[%emt 00:01:20]} g5 {[%clk
01:03:50]} {[%emt 00:00:08]} 50. a6 {[%clk 00:17:59]} {[%emt 00:00:35]} Re2+
{[%clk 01:04:14]} {[%emt 00:00:06]} 51. Kg1 {[%clk 00:17:50]} {[%emt 00:00:32]}
Ra2 {[%clk 01:04:39]} {[%emt 00:00:11]} 52. Rg6 {[%clk 00:16:51]} {[%emt
00:01:29]} e4 {[%clk 01:04:43]} {[%emt 00:00:26]} 53. a7 {[%clk 00:11:52]}
{[%emt 00:05:30]} Rxa7 {[%clk 01:04:55]} {[%emt 00:00:18]} 54. Kf2 {[%clk
00:12:18]} {[%emt 00:00:03]} Ra3 {[%clk 01:04:38]} {[%emt 00:00:47]} 55. Re6
{[%clk 00:12:31]} {[%emt 00:00:17]} e3+ {[%clk 01:04:57]} {[%emt 00:00:12]} 56.
Kg2 {[%clk 00:12:37]} {[%emt 00:00:23]} Ra2+ {[%clk 01:05:21]} {[%emt
00:00:07]} 57. Kg1 {[%clk 00:12:57]} {[%emt 00:00:09]} Kf3 {[%clk 01:05:33]}
{[%emt 00:00:18]} 58. g4 {[%clk 00:12:11]} {[%emt 00:01:16]} Ra1+ {[%clk
01:05:55]} {[%emt 00:00:09]} 59. Kh2 {[%clk 00:12:35]} {[%emt 00:00:05]} e2
{[%clk 01:06:18]} {[%emt 00:00:07]} 60. Rf6+ {[%clk 00:12:48]} {[%emt
00:00:18]} Kxg4 {[%clk 01:06:30]} {[%emt 00:00:17]} 61. Re6 {[%clk 00:11:52]}
{[%emt 00:01:25]} e1=Q {[%clk 01:06:32]} {[%emt 00:00:28]} 62. Re4+ {[%clk
00:12:17]} {[%emt 00:00:06]} Kf3 {[%clk 01:06:53]} {[%emt 00:00:09]} 0-1

[Event "Masterklassen 2025"]
[Site "Uppsala, Sweden"]
[Date "2025.07.03"]
[Round "6.5"]
[White "Walinder, Lars"]
[Black "Ostensson, Julia"]
[Result "1-0"]
[TimeControl "90 min for 40 move + 30 min with an increment of 30 sec starting move 1"]
[WhiteTitle "FM"]
[WhiteFideId "1707329"]
[BlackFideId "1747703"]
[WhiteElo "2181"]
[BlackElo "2005"]

1. c4 {[%clk 01:30:57]} {[%emt 00:00:02]} Nf6 {[%clk 01:30:57]} {[%emt
00:00:03]} 2. Nc3 {[%clk 01:31:11]} {[%emt 00:00:17]} g6 {[%clk 01:31:23]}
{[%emt 00:00:04]} 3. e4 {[%clk 01:31:21]} {[%emt 00:00:20]} d6 {[%clk
01:31:49]} {[%emt 00:00:04]} 4. d4 {[%clk 01:31:29]} {[%emt 00:00:21]} Bg7
{[%clk 01:32:15]} {[%emt 00:00:04]} 5. Nf3 {[%clk 01:31:03]} {[%emt 00:00:56]}
O-O {[%clk 01:32:40]} {[%emt 00:00:06]} 6. Be2 {[%clk 01:31:28]} {[%emt
00:00:05]} e5 {[%clk 01:33:03]} {[%emt 00:00:07]} 7. d5 {[%clk 01:31:38]}
{[%emt 00:00:19]} a5 {[%clk 01:33:15]} {[%emt 00:00:19]} 8. Bg5 {[%clk
01:31:52]} {[%emt 00:00:15]} Na6 {[%clk 01:33:40]} {[%emt 00:00:06]} 9. Nd2
{[%clk 01:30:58]} {[%emt 00:01:23]} Nc5 {[%clk 01:33:57]} {[%emt 00:00:14]} 10.
O-O {[%clk 01:29:50]} {[%emt 00:01:37]} h6 {[%clk 01:34:17]} {[%emt 00:00:11]}
11. Be3 {[%clk 01:25:29]} {[%emt 00:04:50]} Ne8 {[%clk 01:28:39]} {[%emt
00:06:08]} 12. b3 {[%clk 01:24:07]} {[%emt 00:01:52]} f5 {[%clk 01:27:40]}
{[%emt 00:01:29]} 13. f3 {[%clk 01:24:25]} {[%emt 00:00:12]} f4 {[%clk
01:24:28]} {[%emt 00:03:42]} 14. Bf2 {[%clk 01:24:49]} {[%emt 00:00:06]} g5
{[%clk 01:20:38]} {[%emt 00:04:20]} 15. a3 {[%clk 01:25:03]} {[%emt 00:00:17]}
h5 {[%clk 01:15:04]} {[%emt 00:06:04]} 16. Rb1 {[%clk 01:17:17]} {[%emt
00:08:16]} Rf6 {[%clk 00:52:18]} {[%emt 00:23:16]} 17. b4 {[%clk 01:13:21]}
{[%emt 00:04:26]} axb4 {[%clk 00:52:36]} {[%emt 00:00:12]} 18. axb4 {[%clk
01:13:44]} {[%emt 00:00:06]} Nd7 {[%clk 00:42:59]} {[%emt 00:10:07]} 19. c5
{[%clk 01:06:00]} {[%emt 00:08:15]} Rg6 {[%clk 00:42:30]} {[%emt 00:00:59]} 20.
c6 {[%clk 01:04:44]} {[%emt 00:01:46]} Ndf6 {[%clk 00:25:41]} {[%emt 00:17:18]}
21. cxb7 {[%clk 01:04:23]} {[%emt 00:00:51]} Bxb7 {[%clk 00:26:05]} {[%emt
00:00:06]} 22. Ra1 {[%clk 00:56:36]} {[%emt 00:08:17]} Rxa1 {[%clk 00:21:40]}
{[%emt 00:04:55]} 23. Qxa1 {[%clk 00:56:59]} {[%emt 00:00:06]} g4 {[%clk
00:22:01]} {[%emt 00:00:10]} 24. Bh4 {[%clk 00:55:15]} {[%emt 00:02:14]} Bh6
{[%clk 00:09:55]} {[%emt 00:12:37]} 25. Kh1 {[%clk 00:39:10]} {[%emt 00:16:34]}
g3 {[%clk 00:00:33]} {[%emt 00:09:53]} 26. Qa7 {[%clk 00:36:34]} {[%emt
00:03:06]} Qa8 {[%clk 00:00:32]} {[%emt 00:00:31]} 27. Qxa8 {[%clk 00:22:02]}
{[%emt 00:15:02]} Bxa8 {[%clk 00:00:58]} {[%emt 00:00:04]} 28. Ra1 {[%clk
00:22:12]} {[%emt 00:00:19]} Bb7 {[%clk 00:01:26]} {[%emt 00:00:02]} 29. Bb5
{[%clk 00:18:58]} {[%emt 00:03:44]} 1-0

[Event "Masterklassen 2025"]
[Site "Uppsala, Sweden"]
[Date "2025.07.03"]
[Round "6.6"]
[White "Nygren, David"]
[Black "Dingertz, Erik"]
[Result "1-0"]
[TimeControl "90 min for 40 move + 30 min with an increment of 30 sec starting move 1"]
[WhiteFideId "1704761"]
[BlackFideId "1741578"]
[WhiteElo "2094"]
[BlackElo "2121"]

1. Nf3 {[%clk 01:30:55]} {[%emt 00:00:05]} d5 {[%clk 01:30:56]} {[%emt
00:00:05]} 2. d4 {[%clk 01:31:07]} {[%emt 00:00:17]} Nf6 {[%clk 01:31:22]}
{[%emt 00:00:04]} 3. e3 {[%clk 01:31:15]} {[%emt 00:00:23]} c5 {[%clk
01:30:19]} {[%emt 00:01:33]} 4. b3 {[%clk 01:30:53]} {[%emt 00:00:52]} Nc6
{[%clk 01:29:34]} {[%emt 00:01:15]} 5. a3 {[%clk 01:30:39]} {[%emt 00:00:45]}
cxd4 {[%clk 01:29:42]} {[%emt 00:00:22]} 6. exd4 {[%clk 01:29:27]} {[%emt
00:01:41]} Bg4 {[%clk 01:29:41]} {[%emt 00:00:30]} 7. Be2 {[%clk 01:28:11]}
{[%emt 00:01:47]} e6 {[%clk 01:29:52]} {[%emt 00:00:18]} 8. O-O {[%clk
01:26:56]} {[%emt 00:01:45]} Bd6 {[%clk 01:29:37]} {[%emt 00:00:45]} 9. Bb2
{[%clk 01:22:51]} {[%emt 00:04:36]} O-O {[%clk 01:29:14]} {[%emt 00:00:52]} 10.
Ne5 {[%clk 01:19:31]} {[%emt 00:03:51]} Bxe2 {[%clk 01:28:33]} {[%emt
00:01:10]} 11. Qxe2 {[%clk 01:19:35]} {[%emt 00:00:28]} Qb6 {[%clk 01:27:03]}
{[%emt 00:01:58]} 12. Nxc6 {[%clk 01:13:03]} {[%emt 00:07:03]} bxc6 {[%clk
01:26:52]} {[%emt 00:00:39]} 13. Nd2 {[%clk 01:13:10]} {[%emt 00:00:25]} Rae8
{[%clk 01:23:38]} {[%emt 00:03:44]} 14. Rae1 {[%clk 01:02:40]} {[%emt
00:10:59]} a5 {[%clk 01:20:34]} {[%emt 00:03:34]} 15. Qd3 {[%clk 00:57:31]}
{[%emt 00:05:40]} Qb8 {[%clk 01:19:16]} {[%emt 00:01:47]} 16. Nf3 {[%clk
00:55:24]} {[%emt 00:02:37]} Ne4 {[%clk 01:16:12]} {[%emt 00:03:35]} 17. Ne5
{[%clk 00:49:13]} {[%emt 00:06:41]} Qc7 {[%clk 00:57:50]} {[%emt 00:18:53]} 18.
f3 {[%clk 00:43:10]} {[%emt 00:06:32]} Nf6 {[%clk 00:58:15]} {[%emt 00:00:04]}
19. Qd2 {[%clk 00:33:34]} {[%emt 00:10:05]} Nh5 {[%clk 00:39:23]} {[%emt
00:19:23]} 20. g4 {[%clk 00:24:40]} {[%emt 00:09:23]} f6 {[%clk 00:39:50]}
{[%emt 00:00:05]} 21. gxh5 {[%clk 00:22:54]} {[%emt 00:02:16]} fxe5 {[%clk
00:40:14]} {[%emt 00:00:06]} 22. dxe5 {[%clk 00:22:43]} {[%emt 00:00:41]} Bc5+
{[%clk 00:40:39]} {[%emt 00:00:04]} 23. Kh1 {[%clk 00:21:49]} {[%emt 00:01:23]}
Rf5 {[%clk 00:35:32]} {[%emt 00:05:38]} 24. b4 {[%clk 00:18:21]} {[%emt
00:03:59]} axb4 {[%clk 00:34:54]} {[%emt 00:01:08]} 25. axb4 {[%clk 00:18:47]}
{[%emt 00:00:03]} Bb6 {[%clk 00:35:16]} {[%emt 00:00:08]} 26. h6 {[%clk
00:17:56]} {[%emt 00:01:22]} Qf7 {[%clk 00:29:37]} {[%emt 00:06:09]} 27. hxg7
{[%clk 00:16:50]} {[%emt 00:01:37]} Rxf3 {[%clk 00:29:30]} {[%emt 00:00:36]} 28.
Qg2 {[%clk 00:15:51]} {[%emt 00:01:27]} Rxf1+ {[%clk 00:29:30]} {[%emt
00:00:31]} 29. Rxf1 {[%clk 00:15:17]} {[%emt 00:01:04]} Qxg7 {[%clk 00:29:46]}
{[%emt 00:00:15]} 30. Rf3 {[%clk 00:09:41]} {[%emt 00:06:06]} Qxg2+ {[%clk
00:28:04]} {[%emt 00:02:12]} 31. Kxg2 {[%clk 00:10:06]} {[%emt 00:00:05]} Rf8
{[%clk 00:27:47]} {[%emt 00:00:46]} 32. Rc3 {[%clk 00:10:04]} {[%emt 00:00:32]}
Bd4 {[%clk 00:27:08]} {[%emt 00:01:09]} 33. Rg3+ {[%clk 00:10:26]} {[%emt
00:00:08]} 1-0